bitfinex-derivatives/quotes_BTCF0:USTF0_20250724
["timestamp","ask_amount","ask_price","bid_price","bid_amount"]
[1753350289640,0.1684721,118650.0,118640.0,1.54681845]
[1753350290238,0.1684721,118650.0,118640.0,1.26531204]
[1753350290544,0.1684721,118650.0,118640.0,1.54681845]
[1753350290747,0.1684721,118650.0,118640.0,1.55999135]
[1753350291547,0.6584431,118660.0,118650.0,0.2179732]
[1753350291740,0.6584431,118660.0,118650.0,0.33713956]
[1753350291942,0.78499232,118660.0,118650.0,0.61864597]
[1753350292143,0.78217232,118660.0,118650.0,0.61864597]
[1753350292648,0.78434232,118660.0,118650.0,0.61864597]
[1753350292849,0.78434232,118660.0,118650.0,0.33713956]
[1753350293049,1.06584873,118660.0,118650.0,0.33713956]
[1753350293550,1.06684873,118660.0,118650.0,0.33713956]
[1753350293749,1.06884873,118660.0,118650.0,0.33713956]
[1753350294148,0.78734232,118660.0,118650.0,0.33713956]
[1753350294345,1.06884873,118660.0,118650.0,0.33713956]
[1753350294545,0.78734232,118660.0,118650.0,0.33713956]
[1753350296251,1.06884873,118660.0,118650.0,0.33713956]
[1753350297449,1.08682782,118660.0,118650.0,0.2916732]
[1753350299346,0.80532141,118660.0,118650.0,0.2916732]
[1753350299954,0.14969831,118660.0,118650.0,0.2916732]
[1753350300149,0.14752831,118660.0,118650.0,0.93397961]
[1753350300361,0.31598781,118660.0,118650.0,0.97944597]
[1753350301054,0.31498781,118660.0,118650.0,0.61864597]
[1753350301448,0.31298781,118660.0,118650.0,0.61864597]
[1753350301647,0.31298781,118660.0,118650.0,0.33713956]
[1753350302047,0.31478781,118660.0,118650.0,0.33713956]
[1753350302552,0.67558781,118660.0,118650.0,0.33713956]
[1753350302954,0.95709422,118660.0,118650.0,0.93517956]
[1753350303253,0.67558781,118660.0,118650.0,0.93517956]
[1753350303646,0.67558781,118660.0,118650.0,0.33713956]
[1753350304255,0.67558781,118660.0,118650.0,0.2916732]
[1753350305550,0.95709422,118660.0,118650.0,0.1232]
[1753350305744,1.55606422,118660.0,118650.0,0.03158]
[1753350305946,0.1714038,118650.0,118640.0,0.1383121]
[1753350306255,0.55018289,118650.0,118640.0,0.3068001]
[1753350306450,0.8316893,118650.0,118640.0,0.1383121]
[1753350306853,0.8316893,118650.0,118640.0,0.1654021]
[1753350307158,0.8316893,118650.0,118640.0,0.1877821]
[1753350307352,0.81371021,118650.0,118640.0,0.31180374]
[1753350307857,0.81371021,118650.0,118640.0,0.14331574]
[1753350309152,0.81371021,118650.0,118640.0,0.31180374]
[1753350309758,0.81371021,118650.0,118640.0,0.35730007]
[1753350311055,0.5322038,118650.0,118640.0,0.35730007]
[1753350311253,0.81371021,118650.0,118640.0,0.12216633]
[1753350311450,1.10847033,118650.0,118640.0,0.04649633]
[1753350311760,1.12643767,118650.0,118640.0,0.04649633]
[1753350314861,1.12643767,118650.0,118640.0,0.04549633]
[1753350315265,1.10847033,118650.0,118640.0,0.05843]
[1753350315656,0.94190233,118650.0,118640.0,0.05843]
[1753350316661,0.94290233,118650.0,118640.0,0.05843]
[1753350317461,0.94290233,118650.0,118640.0,0.10392633]
[1753350317862,0.66139592,118650.0,118640.0,0.10392633]
[1753350318056,0.94290233,118650.0,118640.0,0.10392633]
[1753350318763,0.94290233,118650.0,118640.0,0.05843]
[1753350319065,0.94290233,118650.0,118640.0,0.10392633]
[1753350319460,0.94290233,118650.0,118640.0,0.05843]
[1753350324874,0.2490676,118640.0,118630.0,0.04549633]
[1753350325063,1.77052042,118640.0,118630.0,0.04549633]
[1753350325262,1.89635383,118640.0,118630.0,0.04549633]
[1753350325565,2.06493783,118640.0,118630.0,0.04549633]
[1753350325768,0.53058821,118630.0,118620.0,0.07784239]
[1753350325968,0.89138821,118630.0,118620.0,0.01724]
[1753350326869,0.89138821,118630.0,118620.0,0.07567]
[1753350327970,0.89138821,118630.0,118620.0,0.07667]
[1753350328565,0.89138821,118630.0,118620.0,0.07567]
[1753350329472,0.6098818,118630.0,118620.0,0.07567]
[1753350329672,1.48886821,118630.0,118620.0,0.12514]
[1753350330176,0.89138821,118630.0,118620.0,0.12514]
[1753350330374,1.48886821,118630.0,118620.0,0.12514]
[1753350330674,1.2073618,118630.0,118620.0,0.12514]
[1753350331169,1.1917718,118630.0,118620.0,0.293656]
[1753350331366,1.44871821,118630.0,118620.0,0.12514]
[1753350331567,1.47363821,118630.0,118620.0,0.293656]
[1753350331768,1.47363821,118630.0,118620.0,0.12514]
[1753350334386,0.8064518,118630.0,118620.0,0.293656]
[1753350334583,1.1672518,118630.0,118620.0,0.35425839]
[1753350335078,0.7824718,118630.0,118620.0,0.9965648]
[1753350335281,0.7659418,118630.0,118620.0,0.9965648]
[1753350335688,0.7859418,118630.0,118620.0,0.9965648]
[1753350336682,0.1885018,118630.0,118620.0,0.9965648]
[1753350337283,0.1885018,118630.0,118620.0,0.94899226]
[1753350337474,0.1685018,118630.0,118620.0,1.00964806]
[1753350338576,0.1685018,118630.0,118620.0,0.72814165]
[1753350338775,0.1685018,118630.0,118620.0,1.00964806]
[1753350339876,0.1685018,118630.0,118620.0,1.01064806]
[1753350340686,0.1685018,118630.0,118620.0,0.99761821]
[1753350340983,0.1847618,118630.0,118620.0,0.99761821]
[1753350341185,0.5547618,118630.0,118620.0,0.99761821]
[1753350342387,0.88502821,118630.0,118620.0,0.5475958]
[1753350342683,1.26204821,118630.0,118620.0,0.1484858]
[1753350342889,1.38860626,118630.0,118620.0,0.0616558]
[1753350343081,1.38860626,118630.0,118620.0,0.001]
[1753350343280,0.2086161,118620.0,118610.0,0.1355558]
[1753350343577,1.83054251,118620.0,118610.0,0.1355558]
[1753350344593,1.83054251,118620.0,118610.0,0.1365558]
[1753350346581,1.83054251,118620.0,118610.0,0.0616558]
[1753350347182,1.83054251,118620.0,118610.0,0.1127858]
[1753350347382,1.83054251,118620.0,118610.0,0.05213]
[1753350347783,1.83054251,118620.0,118610.0,0.0759]
[1753350350689,1.83054251,118620.0,118610.0,0.08867313]
[1753350351591,1.83054251,118620.0,118610.0,0.0759]
[1753350351887,1.83054251,118620.0,118610.0,0.13654092]
[1753350352478,1.83054251,118620.0,118610.0,0.0759]
[1753350360495,1.83054251,118620.0,118610.0,0.08801]
[1753350361493,0.2086161,118620.0,118610.0,0.57607661]
[1753350361698,0.1847761,118620.0,118610.0,0.93687661]
[1753350361895,0.5447761,118620.0,118610.0,0.93687661]
[1753350362097,0.5447761,118620.0,118610.0,0.76834641]
[1753350362299,0.89076667,118620.0,118610.0,0.13878478]
[1753350365702,0.90560667,118620.0,118610.0,0.13878478]
[1753350366397,0.54560667,118620.0,118610.0,0.13878478]
[1753350367797,0.52703251,118620.0,118610.0,0.12604]
[1753350367998,0.52703251,118620.0,118610.0,0.2945702]
[1753350368295,0.51219251,118620.0,118610.0,0.2945702]
[1753350369004,0.51219251,118620.0,118610.0,0.12604]
[1753350370203,0.2306861,118620.0,118610.0,0.12604]
[1753350370407,0.51219251,118620.0,118610.0,0.12604]
[1753350371106,0.2306861,118620.0,118610.0,0.12604]
[1753350371406,0.51219251,118620.0,118610.0,0.12604]
[1753350373794,0.52703251,118620.0,118610.0,0.12604]
[1753350373998,0.88858251,118620.0,118610.0,0.001]
[1753350374407,1.01480863,118620.0,118610.0,0.001]
[1753350378520,0.1685444,118600.0,118590.0,0.10301807]
[1753350378714,1.76659722,118600.0,118590.0,0.13640807]
[1753350378914,1.48509081,118600.0,118590.0,0.13640807]
[1753350379818,1.55153187,118600.0,118590.0,0.13640807]
[1753350380321,1.83303828,118600.0,118590.0,0.09402807]
[1753350380523,1.83303828,118600.0,118590.0,0.09902807]
[1753350381427,1.27002546,118600.0,118590.0,0.11698807]
[1753350381820,1.83303828,118600.0,118590.0,0.11698807]
[1753350382623,1.27002546,118600.0,118590.0,0.11698807]
[1753350382824,1.55153187,118600.0,118590.0,0.14140807]
[1753350383315,1.56006213,118600.0,118590.0,0.14140807]
[1753350385619,1.27855572,118600.0,118590.0,0.14140807]
[1753350385925,1.56006213,118600.0,118590.0,0.14140807]
[1753350386720,1.56006213,118600.0,118590.0,0.06875958]
[1753350386927,1.84156854,118600.0,118590.0,0.05079958]
[1753350387526,1.86031762,118600.0,118590.0,0.05079958]
[1753350388527,1.84156854,118600.0,118590.0,0.03839]
[1753350388729,1.84156854,118600.0,118590.0,0.005]
[1753350391622,1.27855572,118600.0,118590.0,0.005]
[1753350391830,1.84156854,118600.0,118590.0,0.005]
[1753350397624,1.84156854,118600.0,118590.0,0.09814807]
[1753350399940,1.84156854,118600.0,118590.0,0.11521807]
[1753350404442,2.20236854,118600.0,118590.0,7e-08]
[1753350404652,0.2067629,118580.0,118570.0,0.27232716]
[1753350404946,1.49832931,118580.0,118570.0,0.16627298]
[1753350406437,1.2168229,118580.0,118570.0,0.16627298]
[1753350406637,1.49832931,118580.0,118570.0,0.20278298]
[1753350407345,1.49832931,118580.0,118570.0,0.20678298]
[1753350407548,1.2168229,118580.0,118570.0,0.20678298]
[1753350407848,1.49832931,118580.0,118570.0,0.13103]
[1753350409545,1.2168229,118580.0,118570.0,0.13103]
[1753350409845,1.49832931,118580.0,118570.0,0.13103]
[1753350410639,1.49832931,118580.0,118570.0,0.12903]
[1753350410840,1.49832931,118580.0,118570.0,0.12503]
[1753350411132,1.49832931,118580.0,118570.0,0.12703]
[1753350413848,1.49832931,118580.0,118570.0,0.09247]
[1753350414748,1.49832931,118580.0,118570.0,0.10416]
[1753350415840,1.49832931,118580.0,118570.0,0.10216]
[1753350416044,1.49832931,118580.0,118570.0,0.16283435]
[1753350416345,1.49832931,118580.0,118570.0,0.16083435]
[1753350417452,1.2168229,118580.0,118570.0,0.16083435]
[1753350417651,1.2168229,118580.0,118570.0,0.18370435]
[1753350417945,1.49832931,118580.0,118570.0,0.18370435]
[1753350418148,1.49932931,118580.0,118570.0,0.18370435]
[1753350418349,1.49918931,118580.0,118570.0,0.18370435]
[1753350418741,0.54470931,118580.0,118570.0,0.35229145]
[1753350418946,1.11496931,118580.0,118570.0,0.18370435]
[1753350419150,1.11496931,118580.0,118570.0,0.35229145]
[1753350419349,1.13774931,118580.0,118570.0,0.35229145]
[1753350419551,1.13774931,118580.0,118570.0,0.2916171]
[1753350420239,1.13774931,118580.0,118570.0,0.12303]
[1753350420652,0.8562429,118580.0,118570.0,0.2916171]
[1753350420845,1.13774931,118580.0,118570.0,0.2916171]
[1753350423049,0.54470931,118580.0,118570.0,0.2916171]
[1753350423255,0.54470931,118580.0,118570.0,0.93392351]
[1753350423256,0.7624529,118580.0,118570.0,0.93392351]
[1753350423451,0.1695729,118580.0,118570.0,0.93392351]
[1753350426061,0.1695729,118580.0,118570.0,0.6524171]
[1753350426955,0.1919229,118580.0,118570.0,0.6524171]
[1753350429460,0.1919229,118580.0,118570.0,0.93392351]
[1753350429965,0.1919229,118580.0,118570.0,0.6524171]
[1753350432161,0.2078029,118580.0,118570.0,0.6524171]
[1753350433261,0.2078029,118580.0,118570.0,0.71309145]
[1753350434669,0.48930931,118580.0,118570.0,0.71309145]
[1753350436864,0.2078029,118580.0,118570.0,0.71309145]
[1753350437768,0.2078029,118580.0,118570.0,0.6524171]
[1753350437971,0.1919229,118580.0,118570.0,0.6524171]
[1753350439867,0.1919229,118580.0,118570.0,0.93392351]
[1753350440462,0.1695729,118580.0,118570.0,0.93392351]
[1753350441272,0.001,118580.0,118570.0,0.93392351]
[1753350441468,0.65912106,118600.0,118590.0,0.2926786]
[1753350441666,0.18801855,118600.0,118590.0,0.93498501]
[1753350442566,0.18801855,118600.0,118590.0,0.6534786]
[1753350442772,0.25579014,118600.0,118590.0,0.93498501]
[1753350442973,0.25779014,118600.0,118590.0,0.93498501]
[1753350444374,0.25579014,118600.0,118590.0,0.93498501]
[1753350445877,0.25679014,118600.0,118590.0,0.93498501]
[1753350446673,0.25679014,118600.0,118590.0,0.6534786]
[1753350446877,0.25679014,118600.0,118590.0,0.93498501]
[1753350447075,0.25679014,118600.0,118590.0,0.6534786]
[1753350447269,0.25679014,118600.0,118590.0,0.93498501]
[1753350447575,0.23731599,118600.0,118590.0,0.93498501]
[1753350450478,0.25966599,118600.0,118590.0,0.93498501]
[1753350450979,0.25966599,118600.0,118590.0,0.6534786]
[1753350451175,0.25966599,118600.0,118590.0,0.93498501]
[1753350451576,0.27900127,118600.0,118590.0,0.93498501]
[1753350451877,0.25966599,118600.0,118590.0,0.93498501]
[1753350452077,0.25966599,118600.0,118590.0,0.6534786]
[1753350453079,0.5570524,118600.0,118590.0,0.6534786]
[1753350457881,0.27554599,118600.0,118590.0,0.6534786]
[1753350458372,1.25545881,118600.0,118590.0,0.12412]
[1753350458572,1.25545881,118600.0,118590.0,0.04032]
[1753350458872,0.2619386,118590.0,118580.0,0.07681]
[1753350459071,0.2619528,118580.0,118570.0,0.06067435]
[1753350459277,0.2058666,118570.0,118560.0,0.39143367]
[1753350459479,1.49683301,118570.0,118560.0,0.16373435]
[1753350459673,0.2619808,118560.0,118550.0,0.15256298]
[1753350459981,0.205895,118550.0,118540.0,0.16513622]
[1753350460280,1.215355,118550.0,118540.0,0.31144413]
[1753350460482,1.49686141,118550.0,118540.0,0.31144413]
[1753350460980,1.13606141,118550.0,118540.0,0.67224413]
[1753350461685,1.13606141,118550.0,118540.0,0.67524413]
[1753350461884,1.13606141,118550.0,118540.0,0.67924413]
[1753350462183,0.854555,118550.0,118540.0,0.67924413]
[1753350462886,0.831845,118550.0,118540.0,0.67924413]
[1753350463585,0.854555,118550.0,118540.0,0.67924413]
[1753350464677,0.205895,118550.0,118540.0,0.96075054]
[1753350464884,0.59272,118560.0,118550.0,0.3019677]
[1753350465079,0.7613212,118560.0,118550.0,0.98642781]
[1753350465483,0.7613212,118560.0,118550.0,1.02108411]
[1753350465888,0.7986012,118560.0,118550.0,1.02108411]
[1753350466487,0.7986012,118560.0,118550.0,1.02308411]
[1753350466789,0.7986012,118560.0,118550.0,1.02508411]
[1753350467790,0.10116159,118600.0,118590.0,0.12586]
[1753350467983,0.22504209,118600.0,118590.0,0.93672491]
[1753350468184,0.3040569,118610.0,118600.0,0.12586]
[1753350468385,0.60478317,118610.0,118600.0,0.6552043]
[1753350468685,0.60478318,118610.0,118600.0,0.6552043]
[1753350469391,0.58556331,118610.0,118600.0,0.6552043]
[1753350469691,0.07067,118610.0,118600.0,0.6552043]
[1753350469890,0.07467,118610.0,118600.0,0.6552043]
[1753350470194,0.31224112,118610.0,118600.0,0.6552043]
[1753350470389,0.31224112,118610.0,118600.0,0.93671071]
[1753350471287,0.14371102,118610.0,118600.0,0.93671071]
[1753350471495,0.31224112,118610.0,118600.0,0.93671071]
[1753350472183,0.11032102,118610.0,118600.0,0.93671071]
[1753350472595,0.27885112,118610.0,118600.0,0.93671071]
[1753350473493,0.31224112,118610.0,118600.0,0.93671071]
[1753350473694,0.30824112,118610.0,118600.0,0.93671071]
[1753350474593,0.30824112,118610.0,118600.0,0.6552043]
[1753350474896,0.30824112,118610.0,118600.0,0.93671071]
[1753350478295,0.30824112,118610.0,118600.0,0.6552043]
[1753350478496,0.30824112,118610.0,118600.0,0.93671071]
[1753350479200,0.30824112,118610.0,118600.0,0.6552043]
[1753350479392,0.30824112,118610.0,118600.0,0.93671071]
[1753350484403,0.27485112,118610.0,118600.0,0.93671071]
[1753350485712,0.30815112,118610.0,118600.0,0.93671071]
[1753350487912,0.30815112,118610.0,118600.0,0.6552043]
[1753350488104,0.33207112,118610.0,118600.0,0.6552043]
[1753350490415,0.30815112,118610.0,118600.0,0.93671071]
[1753350493117,0.23757112,118610.0,118600.0,0.93671071]
[1753350495124,0.23757112,118610.0,118600.0,1.53011071]
[1753350495323,0.23757112,118610.0,118600.0,1.2486043]
[1753350495515,0.23757112,118610.0,118600.0,1.53011071]
[1753350496223,0.23757112,118610.0,118600.0,1.2486043]
[1753350496419,0.23757112,118610.0,118600.0,0.6552043]
[1753350496619,0.33086112,118610.0,118600.0,1.07974]
[1753350496826,0.33086112,118610.0,118600.0,1.2482845]
[1753350497225,0.30694112,118610.0,118600.0,1.2482845]
[1753350497830,0.27364112,118610.0,118600.0,1.52979091]
[1753350498227,0.29277245,118610.0,118600.0,1.52979091]
[1753350498928,0.27364112,118610.0,118600.0,1.52979091]
[1753350499422,0.27464112,118610.0,118600.0,1.52979091]
[1753350499621,0.27564112,118610.0,118600.0,1.52979091]
[1753350500131,0.29478126,118610.0,118600.0,1.52979091]
[1753350500426,0.35200126,118610.0,118600.0,1.2482845]
[1753350500829,0.35200126,118610.0,118600.0,1.52979091]
[1753350501628,0.32808126,118610.0,118600.0,1.52979091]
[1753350502832,0.32808126,118610.0,118600.0,1.52951091]
[1753350503130,0.35200126,118610.0,118600.0,1.52951091]
[1753350503331,0.35200126,118610.0,118600.0,1.2480045]
[1753350503532,0.35200126,118610.0,118600.0,1.2479245]
[1753350504232,0.35200126,118610.0,118600.0,1.07938]
[1753350504420,1.58702767,118610.0,118600.0,0.10306]
[1753350504625,1.58702767,118610.0,118600.0,0.07681]
[1753350505329,1.30556126,118610.0,118600.0,0.2950845]
[1753350507132,0.94476126,118610.0,118600.0,0.2950845]
[1753350508843,0.94476126,118610.0,118600.0,0.12654]
[1753350510945,1.22626767,118610.0,118600.0,0.12654]
[1753350511851,0.94476126,118610.0,118600.0,0.12654]
[1753350513551,0.94476126,118610.0,118600.0,0.2950845]
[1753350513848,0.94476126,118610.0,118600.0,0.12654]
[1753350514451,1.22626767,118610.0,118600.0,0.2950845]
[1753350515344,0.94476126,118610.0,118600.0,0.2950845]
[1753350516745,0.94476126,118610.0,118600.0,0.12654]
[1753350517150,0.94476126,118610.0,118600.0,0.2950845]
[1753350517849,0.94476126,118610.0,118600.0,0.12654]
[1753350518552,0.94476126,118610.0,118600.0,0.2950845]
[1753350518750,1.22626767,118610.0,118600.0,0.2950845]
[1753350519247,0.94476126,118610.0,118600.0,0.2950845]
[1753350519744,0.94476126,118610.0,118600.0,0.12654]
[1753350520150,0.94476126,118610.0,118600.0,0.2950845]
[1753350520446,0.94476126,118610.0,118600.0,0.12654]
[1753350520748,1.22626767,118610.0,118600.0,0.2950845]
[1753350521248,1.22626767,118610.0,118600.0,0.10347]
[1753350521453,1.22626767,118610.0,118600.0,0.04231]
[1753350521747,1.22626767,118610.0,118600.0,0.07611]
[1753350522453,1.22626767,118610.0,118600.0,0.0872]
[1753350522649,1.22626767,118610.0,118600.0,0.10222]
[1753350522953,1.22626767,118610.0,118600.0,0.0872]
[1753350523451,1.58706767,118610.0,118600.0,0.01765]
[1753350523653,0.2065345,118600.0,118590.0,0.43458]
[1753350523855,1.15803105,118600.0,118590.0,0.6031387]
[1753350524050,1.15803105,118600.0,118590.0,0.6142287]
[1753350524251,1.15803105,118600.0,118590.0,0.46069]
[1753350524555,1.15803105,118600.0,118590.0,0.6292489]
[1753350525058,1.15803105,118600.0,118590.0,0.6524189]
[1753350528857,0.87652464,118600.0,118590.0,0.6524189]
[1753350529062,1.15803105,118600.0,118590.0,0.6524189]
[1753350529758,1.15903105,118600.0,118590.0,0.6524189]
[1753350530159,1.16003105,118600.0,118590.0,0.6524189]
[1753350532964,1.16003105,118600.0,118590.0,0.48386]
[1753350533451,1.16003105,118600.0,118590.0,0.03998]
[1753350534664,1.16003105,118600.0,118590.0,0.07378]
[1753350538063,1.16003105,118600.0,118590.0,0.08487]
[1753350541266,1.30104392,118600.0,118590.0,0.08487]
[1753350543665,0.2632488,118590.0,118580.0,0.07399]
[1753350543968,0.47450844,118590.0,118580.0,0.07399]
[1753350544371,0.47450844,118590.0,118580.0,0.08408]
[1753350544569,0.47450844,118590.0,118580.0,0.10038]
[1753350544962,0.47450844,118590.0,118580.0,0.268953]
[1753350545162,0.5449625,118590.0,118580.0,0.12237]
[1753350547266,0.5459625,118590.0,118580.0,0.12237]
[1753350549376,0.5469625,118590.0,118580.0,0.12237]
[1753350551671,0.5469625,118590.0,118580.0,0.08408]
[1753350552071,0.5469625,118590.0,118580.0,0.07399]
[1753350552277,0.2632629,118580.0,118570.0,0.09124772]
[1753350552476,0.2632629,118580.0,118570.0,0.03328772]
[1753350552477,1.1376166,118580.0,118570.0,0.03328772]
[1753350552771,1.4984166,118580.0,118570.0,0.03328772]
[1753350553181,0.1686013,118560.0,118550.0,0.71647109]
[1753350553480,0.1686013,118560.0,118480.0,1.925339]
[1753350553481,0.8432204,118530.0,118490.0,0.00842272]
[1753350553672,0.1687579,118450.0,118440.0,0.15166194]
[1753350553877,0.084396,118430.0,118410.0,0.36361434]
[1753350554171,0.1688149,118410.0,118400.0,0.00844229]
[1753350554376,0.1688292,118400.0,118390.0,0.12237]
[1753350554584,1.0940566,118400.0,118390.0,0.48615273]
[1753350554878,1.0940566,118400.0,118390.0,1.06784142]
[1753350555380,1.19320756,118400.0,118390.0,1.06784142]
[1753350555774,0.86191838,118400.0,118390.0,1.06784142]
[1753350556070,0.86191838,118400.0,118390.0,0.48915273]
[1753350556380,0.86191838,118400.0,118390.0,0.38798937]
[1753350556381,1.31918195,118400.0,118390.0,0.38798937]
[1753350556574,1.31918195,118400.0,118390.0,0.49415273]
[1753350556884,0.98789277,118400.0,118390.0,0.49415273]
[1753350557078,0.86191838,118400.0,118390.0,1.15271273]
[1753350557273,0.86191838,118400.0,118390.0,1.04654937]
[1753350557274,0.5306292,118400.0,118390.0,1.04654937]
[1753350557467,0.86191838,118400.0,118390.0,1.04654937]
[1753350557673,1.52327838,118400.0,118390.0,0.38798937]
[1753350557970,1.51778894,118400.0,118390.0,0.49415273]
[1753350558173,1.51846894,118400.0,118390.0,0.49415273]
[1753350558372,0.85642894,118400.0,118390.0,0.49415273]
[1753350558677,2.00545311,118400.0,118390.0,0.0536501]
[1753350558982,1.69835393,118400.0,118390.0,0.0800401]
[1753350559181,1.69875393,118400.0,118390.0,0.35964947]
[1753350559978,0.70278475,118400.0,118390.0,0.35964947]
[1753350560278,1.76796722,118400.0,118390.0,0.35964947]
[1753350560682,1.76784722,118400.0,118390.0,0.35964947]
[1753350560884,1.61295223,118400.0,118390.0,0.35964947]
[1753350561084,1.61299223,118400.0,118390.0,1.04750152]
[1753350562184,1.61299223,118400.0,118390.0,1.04450152]
[1753350562185,1.61307223,118400.0,118390.0,1.04450152]
[1753350562487,1.28178305,118400.0,118390.0,1.04450152]
[1753350562782,1.61307223,118400.0,118390.0,1.04450152]
[1753350562985,1.68223223,118400.0,118390.0,0.96000925]
[1753350563178,1.68223223,118400.0,118390.0,0.90190698]
[1753350563373,1.68223223,118400.0,118390.0,0.81741471]
[1753350563586,1.68223223,118400.0,118390.0,0.73392244]
[1753350563784,1.68223223,118400.0,118390.0,0.64943017]
[1753350563978,1.68223223,118400.0,118390.0,0.5869279]
[1753350564587,1.35094305,118400.0,118390.0,0.5869279]
[1753350564980,1.68223223,118400.0,118390.0,0.6609179]
[1753350565786,1.68223223,118400.0,118390.0,0.6599179]
[1753350565988,1.68223223,118400.0,118390.0,0.6639179]
[1753350566588,1.68223223,118400.0,118390.0,0.6649179]
[1753350566888,1.68223223,118400.0,118390.0,0.6609179]
[1753350569184,1.35094305,118400.0,118390.0,0.6609179]
[1753350569688,1.70620223,118400.0,118390.0,0.6609179]
[1753350569889,1.37491305,118400.0,118390.0,0.6609179]
[1753350570787,0.07001329,118400.0,118390.0,1.52184918]
[1753350570994,0.07001329,118400.0,118390.0,2.18376918]
[1753350571490,0.23884109,118400.0,118390.0,2.18376918]
[1753350572390,0.07001329,118400.0,118390.0,2.18376918]
[1753350572593,0.23884119,118400.0,118390.0,2.18360918]
[1753350573107,0.2692394,118400.0,118390.0,2.18360918]
[1753350573287,0.2692394,118400.0,118390.0,1.19056]
[1753350573593,0.31396197,118400.0,118390.0,2.18340918]
[1753350573896,0.2692394,118400.0,118390.0,2.18340918]
[1753350574594,0.31398106,118400.0,118390.0,2.18340918]
[1753350575394,0.2692394,118400.0,118390.0,1.86410292]
[1753350576688,0.31392176,118400.0,118390.0,1.86410292]
[1753350576890,0.31392176,118400.0,118390.0,1.20254292]
[1753350577086,0.31392176,118400.0,118390.0,1.86254292]
[1753350577290,0.35011176,118400.0,118390.0,1.96168292]
[1753350577491,0.35011136,118400.0,118390.0,1.63039374]
[1753350577694,0.305429,118400.0,118390.0,1.96168292]
[1753350579604,0.305429,118400.0,118390.0,1.96064292]
[1753350579984,0.1366015,118400.0,118390.0,1.96064292]
[1753350580293,0.1004115,118400.0,118390.0,1.96064292]
[1753350580689,0.269239,118400.0,118390.0,1.96064292]
[1753350580892,0.305429,118400.0,118390.0,1.62935374]
[1753350581090,0.305429,118400.0,118390.0,1.9607979]
[1753350581305,0.436089,118400.0,118390.0,1.16876842]
[1753350581487,0.48077136,118400.0,118390.0,1.23326842]
[1753350581687,0.48077136,118400.0,118390.0,0.95733678]
[1753350581991,1.17286054,118400.0,118390.0,0.06583498]
[1753350582193,1.17286054,118400.0,118380.0,0.07234]
[1753350582194,0.3356918,118390.0,118380.0,0.07234]
[1753350582393,1.10299177,118390.0,118380.0,0.38277164]
[1753350583096,0.77170259,118390.0,118380.0,0.210016]
[1753350583296,1.05817919,118390.0,118380.0,0.210016]
[1753350583497,0.36609001,118390.0,118380.0,0.266716]
[1753350583701,0.15146821,118390.0,118380.0,1.36837682]
[1753350583995,0.07524849,118390.0,118380.0,1.36837682]
[1753350585395,0.24408999,118390.0,118380.0,1.36837682]
[1753350585595,0.28027999,118390.0,118380.0,1.36837682]
[1753350585903,0.2050315,118390.0,118380.0,1.03708764]
[1753350586099,0.2360915,118390.0,118380.0,1.36837682]
[1753350586595,0.2899115,118390.0,118380.0,1.36837682]
[1753350586795,0.3356915,118390.0,118380.0,1.36837682]
[1753350588802,0.3356915,118390.0,118380.0,2.02489682]
[1753350590309,0.16685,118390.0,118380.0,2.02489682]
[1753350590605,0.3356915,118390.0,118380.0,2.02489682]
[1753350592904,0.16685,118390.0,118380.0,1.69360764]
[1753350593106,0.07001329,118400.0,118390.0,0.3336615]
[1753350593303,0.06901329,118400.0,118390.0,1.36736232]
[1753350593496,0.3972091,118420.0,118410.0,0.168813]
[1753350593700,0.48521088,118420.0,118410.0,1.36733382]
[1753350594414,0.48521088,118420.0,118410.0,1.03604464]
[1753350594800,0.5523267,118420.0,118410.0,1.03604464]
[1753350595102,0.9131267,118420.0,118410.0,0.60728464]
[1753350596107,0.89118492,118420.0,118410.0,0.60728464]
[1753350597105,1.54554492,118420.0,118410.0,0.60728464]
[1753350597806,1.54554492,118420.0,118410.0,0.61718428]
[1753350598004,1.56996788,118420.0,118410.0,0.6303838]
[1753350598201,1.56996788,118420.0,118410.0,0.27887252]
[1753350598403,0.91560788,118420.0,118410.0,0.64060464]
[1753350598608,1.56856788,118420.0,118410.0,0.64060464]
[1753350599509,0.91660788,118420.0,118410.0,0.64060464]
[1753350599701,1.56904788,118420.0,118410.0,0.64060464]
[1753350600310,0.91660788,118420.0,118410.0,0.64060464]
[1753350600505,1.20792788,118420.0,118410.0,0.67524464]
[1753350600807,1.36944988,118420.0,118410.0,0.67524464]
[1753350601003,1.36920988,118420.0,118410.0,0.67524464]
[1753350601202,1.41204363,118420.0,118410.0,0.67524464]
[1753350601410,1.36720988,118420.0,118410.0,0.67524464]
[1753350601610,1.32492678,118420.0,118410.0,0.67524464]
[1753350602110,1.36976053,118420.0,118410.0,0.67524464]
[1753350602309,1.37076053,118420.0,118410.0,0.67524464]
[1753350602804,1.36976053,118420.0,118410.0,0.67524464]
[1753350603205,0.39748782,118420.0,118410.0,1.39052619]
[1753350603407,1.21752652,118420.0,118410.0,1.39052619]
[1753350603909,1.21652652,118420.0,118410.0,1.39052619]
[1753350604108,1.04772782,118420.0,118410.0,1.39052619]
[1753350604314,1.21652652,118420.0,118410.0,1.39052619]
[1753350604617,0.39648782,118420.0,118410.0,1.39052619]
[1753350604810,1.04704782,118420.0,118410.0,1.39052619]
[1753350605009,1.21584652,118420.0,118410.0,1.39052619]
[1753350605615,1.21584652,118420.0,118410.0,1.45108674]
[1753350606012,1.04704782,118420.0,118410.0,1.45108674]
[1753350606404,1.21584652,118420.0,118410.0,1.11979756]
[1753350607215,1.21584652,118420.0,118410.0,1.09660519]
[1753350607610,1.21684652,118420.0,118410.0,1.09660519]
[1753350608715,1.21684652,118420.0,118410.0,1.03604464]
[1753350610609,1.04804782,118420.0,118410.0,1.03604464]
[1753350610813,1.21684652,118420.0,118410.0,1.03604464]
[1753350611320,1.04468782,118420.0,118410.0,1.03604464]
[1753350611617,1.21348652,118420.0,118410.0,1.03604464]
[1753350612322,0.39748782,118420.0,118410.0,1.36733382]
[1753350612510,1.04468782,118420.0,118410.0,1.36733382]
[1753350613415,1.21348652,118420.0,118410.0,1.03604464]
[1753350613611,1.21348652,118420.0,118410.0,1.31848126]
[1753350614210,1.21348652,118420.0,118410.0,1.03604464]
[1753350614519,1.21248652,118420.0,118410.0,1.03604464]
[1753350614717,1.21248652,118420.0,118410.0,1.31948126]
[1753350615218,1.21248652,118420.0,118410.0,1.3650465]
[1753350615418,0.39648782,118420.0,118410.0,1.3650465]
[1753350615612,1.04192782,118420.0,118410.0,1.3650465]
[1753350616005,1.21072652,118420.0,118410.0,1.31948126]
[1753350616409,1.21072652,118420.0,118410.0,1.3650467]
[1753350616612,0.39648782,118420.0,118410.0,1.3650467]
[1753350616913,1.04152782,118420.0,118410.0,1.3650467]
[1753350618719,1.04152782,118420.0,118410.0,1.38004181]
[1753350618921,1.04108782,118420.0,118410.0,1.09760519]
[1753350619120,1.04108782,118420.0,118410.0,1.38004181]
[1753350620818,1.04096782,118420.0,118410.0,1.31948126]